bitfinex/quotes_SOLUSD_20250701
["timestamp","ask_amount","ask_price","bid_price","bid_amount"]
[1751345251240,3.15747806,152.88,152.86,6.54193379]
[1751345252718,3.15747806,152.88,152.85,22.89826627]
[1751345253034,3.15747806,152.87,152.85,6.54236179]
[1751345253738,32.53983352,152.91,152.85,6.54236179]
[1751345253929,4.9341051,152.87,152.85,6.54236179]
[1751345254535,32.53983352,152.91,152.84,1.5435]
[1751345254536,4.9341051,152.86,152.84,6.54269573]
[1751345254742,4.9341051,152.86,152.82,25.33545654]
[1751345256524,4.9341051,152.86,152.81,22.90426019]
[1751345256730,4.9341051,152.86,152.81,27.83836529]
[1751345257742,4.9341051,152.86,152.81,22.90426019]
[1751345257941,4.9341051,152.85,152.81,27.83836529]
[1751345258132,4.9341051,152.86,152.82,23.8680771]
[1751345258645,4.9341051,152.87,152.83,6.54321795]
[1751345258943,26.0,152.88,152.83,6.54321795]
[1751345259127,4.9341051,152.86,152.83,6.54321795]
[1751345260335,4.9341051,152.87,152.83,22.90126283]
[1751345261131,4.9341051,152.86,152.83,22.90126283]
[1751345261337,4.9341051,152.87,152.83,27.83536793]
[1751345262143,4.9341051,152.87,152.83,22.90126283]
[1751345262451,4.9341051,152.87,152.83,27.83536793]
[1751345263437,4.9341051,152.87,152.83,22.90126283]
[1751345265431,4.9341051,152.85,152.83,6.54321795]
[1751345267439,4.9341051,152.85,152.81,22.90421877]
[1751345268632,4.9341051,152.85,152.81,27.83832387]
[1751345269556,4.9341051,152.85,152.81,22.90421877]
[1751345269755,4.9341051,152.85,152.81,27.83832387]
[1751345270635,4.9341051,152.87,152.82,23.8680771]
[1751345270945,30.9341051,152.87,152.83,4.9341051]
[1751345271947,30.9341051,152.87,152.83,6.54321795]
[1751345273658,4.9341051,152.86,152.83,6.54321795]
[1751345273839,26.0,152.87,152.83,6.54321795]
[1751345274160,3.15821329,152.87,152.83,22.90126283]
[1751345275656,3.15821329,152.86,152.83,22.90126283]
[1751345277668,3.15821329,152.87,152.83,22.90126283]
[1751345279740,3.15821329,152.87,152.83,26.05947612]
[1751345280042,3.15821329,152.87,152.83,22.90126283]
[1751345281490,33.04,152.9,152.83,22.90126283]
[1751345281662,3.15821329,152.87,152.83,22.90126283]
[1751345282456,33.04,152.9,152.84,22.09218529]
[1751345282662,0.2,152.9,152.86,21.80786215]
[1751345282856,3.35821329,152.9,152.86,18.64964886]
[1751345283063,3.15821329,152.89,152.86,18.64964886]
[1751345284072,3.15821329,152.89,152.87,6.54150585]
[1751345285175,3.15821329,152.89,152.86,22.89650916]
[1751345289947,3.15821329,152.88,152.86,6.54193379]
[1751345291365,3.15821329,152.89,152.86,6.54193379]
[1751345291577,0.2,152.9,152.88,6.54107796]
[1751345291744,3.15821329,152.89,152.88,6.54107796]
[1751345291952,3.15821329,152.89,152.85,6.54236179]
[1751345292151,3.15821329,152.87,152.85,6.54236179]
[1751345292567,3.15821329,152.86,152.85,6.54236179]
[1751345292765,0.2,152.9,152.85,6.54236179]
[1751345292766,26.0,152.88,152.85,6.54236179]
[1751345292970,3.15821329,152.87,152.85,6.54236179]
[1751345293369,3.15821329,152.86,152.85,6.54236179]
[1751345293675,3.15821329,152.86,152.83,22.90114212]
[1751345294361,3.15821329,152.87,152.83,22.90114212]
[1751345295183,3.15821329,152.86,152.83,16.35792417]
[1751345295577,3.15821329,152.87,152.83,16.35792417]
[1751345296284,26.0,152.89,152.83,16.35792417]
[1751345296462,3.15821329,152.87,152.83,16.35792417]
[1751345297559,3.15821329,152.87,152.83,22.90114212]
[1751345299062,26.0,152.89,152.83,22.90114212]
[1751345299387,3.15821329,152.87,152.83,22.90114212]
[1751345299685,3.15821329,152.87,152.83,26.05935541]
[1751345300075,26.0,152.89,152.84,22.09218529]
[1751345300287,3.15821329,152.88,152.84,22.09218529]
[1751345300587,3.15821329,152.89,152.85,3.15821329]
[1751345300991,3.15821329,152.88,152.86,6.54193379]
[1751345303179,3.15821329,152.88,152.85,22.89745159]
[1751345304091,0.2,152.9,152.85,22.89745159]
[1751345304386,3.15821329,152.88,152.85,22.89745159]
[1751345306285,3.15821329,152.87,152.85,22.89745159]
[1751345306792,3.15821329,152.87,152.85,6.54236179]
[1751345307295,3.15821329,152.86,152.85,6.54236179]
[1751345308492,3.15821329,152.86,152.82,6.54364611]
[1751345308700,3.15821329,152.86,152.82,22.9027614]
[1751345309484,26.2,152.9,152.82,26.06097469]
[1751345309675,3.15821329,152.86,152.82,26.06097469]
[1751345310767,3.15821329,152.86,152.82,22.9027614]
[1751345311066,3.15821329,152.86,152.82,26.06097469]
[1751345312594,3.15821329,152.86,152.82,22.9027614]
[1751345313007,3.15821329,152.85,152.82,22.9027614]
[1751345316369,26.0,152.87,152.82,6.54364611]
[1751345316576,3.15821329,152.84,152.82,6.54364611]
[1751345318093,3.15821329,152.85,152.82,6.54364611]
[1751345318292,26.0,152.86,152.82,6.54364611]
[1751345318480,3.15821329,152.85,152.81,22.90426019]
[1751345319195,3.15821329,152.84,152.81,22.90426019]
[1751345319698,3.15821329,152.85,152.81,22.90426019]
[1751345321698,3.15821329,152.84,152.81,22.90426019]
[1751345322898,26.0,152.86,152.81,22.90426019]
[1751345323088,3.15821329,152.85,152.81,22.90426019]
[1751345323288,3.15821329,152.84,152.81,22.90426019]
[1751345330095,3.15821329,152.86,152.81,26.06247348]
[1751345330480,29.15821329,152.86,152.81,26.06247348]
[1751345330681,3.15821329,152.85,152.81,26.06247348]
[1751345332692,3.15821329,152.85,152.81,22.90426019]
[1751345332882,3.15821329,152.84,152.81,22.90426019]
[1751345333274,3.15821329,152.85,152.81,22.90426019]
[1751345333888,26.0,152.86,152.81,22.90426019]
[1751345334086,3.15821329,152.85,152.81,26.06247348]
[1751345336578,3.15821329,152.86,152.81,26.06247348]
[1751345336795,29.15821329,152.86,152.82,3.15821329]
[1751345337300,3.15821329,152.85,152.81,24.42306019]
[1751345337486,3.15821329,152.84,152.81,24.42306019]
[1751345341309,3.15821329,152.85,152.81,24.42306019]
[1751345342487,29.15821329,152.86,152.81,24.42306019]
[1751345342817,29.15821329,152.86,152.82,3.15821329]
[1751345343020,26.0,152.86,152.82,3.15821329]
[1751345343189,26.0,152.86,152.81,24.42306019]
[1751345343510,29.15821329,152.86,152.82,3.15821329]
[1751345345403,29.15821329,152.86,152.83,6.54321795]
[1751345345604,26.0,152.86,152.83,6.54321795]
[1751345345804,146.4,152.9,152.85,3.15821329]
[1751345346110,0.2,152.9,152.89,3.15821329]
[1751345346424,0.2,152.9,152.89,22.09218529]
[1751345346608,0.2,152.9,152.89,3.15821329]
[1751345346923,0.2,152.9,152.87,3.15821329]
[1751345347095,3.35821329,152.9,152.87,18.64964886]
[1751345347300,0.2,152.9,152.88,6.54107796]
[1751345349497,0.2,152.9,152.89,18.933972]
[1751345349699,0.2,152.9,152.89,23.86541939]
[1751345349914,0.2,152.9,152.89,18.933972]
[1751345351007,0.2,152.9,152.89,23.86541939]
[1751345351410,0.2,152.9,152.89,30.40606953]
[1751345354815,0.2,152.9,152.89,25.47462214]
[1751345360216,0.2,152.9,152.89,30.40606953]
[1751345360416,0.2,152.9,152.89,25.47462214]
[1751345361626,0.2,152.9,152.89,30.40606953]
[1751345362215,0.2,152.9,152.89,25.47462214]
[1751345364920,0.2,152.9,152.89,30.40606953]
[1751345365307,0.2,152.9,152.89,25.47462214]
[1751345365724,0.2,152.9,152.89,6.54065014]
[1751345366227,5.13144739,152.9,152.89,6.54065014]
[1751345367835,0.2,152.9,152.87,22.89506273]
[1751345368011,5.13144739,152.9,152.87,22.89506273]
[1751345368859,0.2,152.9,152.87,22.89506273]
[1751345369140,5.13144739,152.9,152.87,22.89506273]
[1751345370225,0.2,152.9,152.87,22.89506273]
[1751345370540,5.13144739,152.9,152.87,22.89506273]
[1751345371032,4.93144739,152.89,152.87,6.54150585]
[1751345371227,4.93144739,152.88,152.86,6.54193379]
[1751345371443,4.93144739,152.87,152.86,6.54193379]
[1751345373124,4.93144739,152.87,152.83,25.47718995]
[1751345373851,4.93144739,152.86,152.83,25.47718995]
[1751345374049,4.93144739,152.86,152.83,6.54321795]
[1751345374345,4.93144739,152.85,152.83,6.54321795]
[1751345377028,26.0,152.87,152.83,6.54321795]
[1751345377230,4.93144739,152.84,152.83,6.54321795]
[1751345378857,26.0,152.87,152.83,6.54321795]
[1751345379042,4.93144739,152.84,152.83,6.54321795]
[1751345379819,26.0,152.87,152.83,6.54321795]
[1751345380016,4.93144739,152.84,152.83,6.54321795]
[1751345381943,26.0,152.87,152.83,6.54321795]
[1751345382145,4.93144739,152.84,152.83,6.54321795]
[1751345385552,4.93144739,152.85,152.83,6.54321795]
[1751345385755,3.15881208,152.85,152.83,6.54321795]
[1751345388449,26.0,152.87,152.83,6.54321795]
[1751345388450,3.15881208,152.84,152.83,6.54321795]
[1751345390428,3.15881208,152.84,152.83,6.64321795]
[1751345393652,3.15881208,152.84,152.83,0.1]
[1751345400565,3.15881208,152.84,152.83,6.64321795]
[1751345401342,3.15881208,152.84,152.83,0.1]
[1751345402545,3.15881208,152.84,152.83,6.64321795]
[1751345406772,26.0,152.85,152.83,6.64321795]
[1751345406966,3.15881208,152.84,152.83,6.64321795]
[1751345420388,26.0,152.85,152.83,6.64321795]
[1751345420691,3.15881208,152.84,152.83,6.64321795]
[1751345421081,3.15881208,152.84,152.83,0.1]
[1751345423275,29.15881208,152.84,152.83,0.1]
[1751345425586,29.15881208,152.84,152.83,6.64321795]
[1751345429200,29.15881208,152.84,152.83,0.1]
[1751345430901,29.15881208,152.84,152.83,6.64321795]
[1751345431402,3.15881208,152.84,152.83,6.64321795]
[1751345431794,29.15881208,152.84,152.83,6.64321795]
[1751345431995,29.15881208,152.84,152.83,0.1]
[1751345433510,35.70160192,152.84,152.83,0.1]
[1751345433908,40.54538875,152.84,152.83,0.1]
[1751345434590,34.00259891,152.84,152.83,0.1]
[1751345434794,30.84378683,152.84,152.83,0.1]
[1751345435020,34.00259891,152.84,152.83,0.1]
[1751345435198,29.15881208,152.84,152.83,0.1]
[1751345436607,35.70160192,152.84,152.83,0.1]
[1751345437104,40.54279287,152.84,152.83,0.1]
[1751345439519,41.54279287,152.84,152.83,0.1]
[1751345442324,41.54279287,152.84,152.82,0.1]
[1751345442525,3.15881208,152.83,152.82,0.1]
[1751345444626,153.02,152.84,152.82,0.1]
[1751345444810,29.15881208,152.83,152.82,6.64364611]
[1751345447929,30.93782349,152.83,152.82,6.64364611]
[1751345449422,4.93782349,152.83,152.82,6.64364611]
[1751345454040,4.93782349,152.83,152.82,0.1]
[1751345458246,146.2,152.82,152.76,0.1]
[1751345458437,26.0,152.78,152.76,0.1]
[1751345458743,4.93782349,152.77,152.76,0.1]
[1751345459817,4.93782349,152.77,152.74,1.3646061]
[1751345460135,4.93782349,152.75,152.74,1.3646061]
[1751345460339,9.87564698,152.75,152.67,18.37414539]
[1751345460515,4.93782349,152.68,152.67,24.92422071]
[1751345460716,4.93782349,152.68,152.67,43.57386957]
[1751345460926,4.93782349,152.68,152.67,24.92422071]
[1751345461344,4.93782349,152.68,152.67,8.55007532]
[1751345461734,26.0,152.74,152.67,8.55007532]
[1751345461929,4.93782349,152.68,152.67,8.55007532]
[1751345462133,26.0,152.74,152.67,24.92526363]
[1751345462351,4.93782349,152.68,152.67,43.57491249]
[1751345462554,4.93782349,152.68,152.67,43.85923563]
[1751345462845,4.93782349,152.69,152.67,43.85923563]
[1751345463649,26.0,152.74,152.67,8.55007532]
[1751345463849,4.93782349,152.69,152.67,8.55007532]
[1751345464146,26.0,152.76,152.69,6.54921736]
[1751345464346,44.92246507,152.8,152.7,18.933972]
[1751345464534,38.37782349,152.8,152.7,18.933972]
[1751345464737,4.93782349,152.73,152.7,18.933972]
[1751345466036,4.93782349,152.72,152.7,18.933972]
[1751345466233,4.93782349,152.72,152.71,6.54835963]
[1751345466435,4.93782349,152.73,152.71,6.54835963]
[1751345466821,26.0,152.77,152.71,22.91925871]
[1751345467226,4.93782349,152.73,152.71,22.91925871]
[1751345468435,4.93782349,152.72,152.71,22.91925871]
[1751345468634,4.93782349,152.73,152.71,22.91925871]
[1751345469043,26.0,152.76,152.71,22.91925871]
[1751345469246,4.93782349,152.73,152.71,22.91925871]
[1751345476965,0.2,152.74,152.71,6.54835963]
[1751345476966,4.93782349,152.72,152.71,6.54835963]
[1751345477840,4.93782349,152.72,152.69,6.54921736]
[1751345478159,0.2,152.74,152.69,6.54921736]
[1751345478160,4.93782349,152.71,152.69,6.54921736]
[1751345478349,4.93782349,152.71,152.68,22.92287099]
[1751345479346,0.2,152.74,152.68,22.92287099]
[1751345479660,6.7472602,152.74,152.68,6.54964631]
[1751345479851,26.2,152.74,152.68,6.54964631]
[1751345480049,4.93782349,152.69,152.68,6.54964631]
[1751345480440,26.0,152.73,152.68,6.54964631]
[1751345480647,26.0,152.72,152.68,6.54964631]
[1751345480849,4.93782349,152.7,152.68,6.54964631]
[1751345481642,26.0,152.73,152.68,6.54964631]
[1751345481849,4.93782349,152.71,152.68,6.54964631]
[1751345482265,4.93782349,152.71,152.68,22.9237621]
[1751345482561,26.0,152.73,152.68,22.9237621]
[1751345482774,4.93782349,152.72,152.68,22.9237621]
[1751345483362,4.93782349,152.72,152.69,18.933972]
[1751345483563,4.93782349,152.72,152.68,22.9237621]
[1751345486085,4.93782349,152.71,152.68,22.9237621]
[1751345486251,4.93782349,152.7,152.68,6.54964631]
[1751345486767,4.93782349,152.7,152.68,22.9237621]
[1751345487275,4.93782349,152.73,152.68,27.86158559]
[1751345487459,4.93782349,152.73,152.69,18.933972]
[1751345487850,4.93782349,152.73,152.7,6.54878847]
[1751345488562,4.93782349,152.72,152.7,6.54878847]
[1751345492371,0.2,152.74,152.7,6.54878847]
[1751345492372,5.13782349,152.74,152.7,22.92075965]
[1751345492579,0.2,152.74,152.73,4.93782349]
[1751345493966,0.2,152.74,152.72,4.93782349]
[1751345494156,0.2,152.74,152.73,6.54750212]
[1751345496885,0.2,152.74,152.72,6.54793085]
[1751345499290,0.2,152.74,152.71,18.933972]
[1751345500384,0.2,152.74,152.72,6.54793085]
[1751345500579,5.13782349,152.74,152.72,6.54793085]
[1751345501484,0.2,152.74,152.72,6.54793085]
[1751345501869,4.93782349,152.73,152.72,6.54793085]
[1751345502182,5.13782349,152.74,152.72,6.54793085]
[1751345502389,0.2,152.74,152.71,46.50673106]
[1751345503197,0.2,152.74,152.72,23.87179549]
[1751345503786,5.13782349,152.74,152.71,22.91925871]
[1751345504078,4.93782349,152.73,152.71,22.91925871]
[1751345504483,4.93782349,152.73,152.71,16.37089908]
[1751345506769,0.2,152.74,152.71,16.37089908]
[1751345506968,5.13782349,152.74,152.71,16.37089908]
[1751345507664,0.2,152.74,152.72,18.933972]
[1751345508284,0.2,152.74,152.73,6.54750212]
[1751345511294,5.13782349,152.74,152.73,6.54750212]
[1751345512273,0.2,152.74,152.73,6.54750212]
[1751345513793,0.2,152.74,152.73,6.54750212]
[1751345517081,5.13782349,152.74,152.73,6.54750212]
[1751345517282,0.2,152.74,152.73,6.54750212]
[1751345522777,5.13782349,152.74,152.73,6.54750212]
[1751345523083,5.13782349,152.74,152.71,16.37089908]
[1751345523297,4.93782349,152.72,152.71,16.37089908]
[1751345524011,4.93782349,152.72,152.69,41.85623278]
[1751345524304,4.93782349,152.7,152.69,22.92226078]
[1751345525404,4.93782349,152.7,152.69,16.37304342]
[1751345526090,0.2,152.74,152.69,16.37304342]
[1751345526298,4.93782349,152.71,152.69,16.37304342]
[1751345527598,4.93782349,152.71,152.69,22.92226078]
[1751345530794,0.2,152.74,152.69,22.92226078]
[1751345530795,4.93782349,152.72,152.69,22.92226078]
[1751345531117,4.93782349,152.73,152.69,22.92226078]
[1751345532018,0.2,152.74,152.69,22.92226078]
[1751345532221,4.93782349,152.72,152.69,22.92226078]
[1751345540711,0.2,152.74,152.69,22.92226078]
[1751345541010,4.93782349,152.72,152.69,22.92226078]
[1751345541231,0.2,152.74,152.69,22.92226078]
[1751345541405,4.93782349,152.73,152.69,22.92226078]
[1751345541723,0.2,152.74,152.7,18.933972]
[1751345541895,0.2,152.74,152.71,6.04835963]
[1751345542331,0.2,152.74,152.71,22.41925871]
[1751345546628,5.13782349,152.74,152.71,22.41925871]
[1751345547022,0.2,152.74,152.71,22.41925871]
[1751345548401,0.2,152.74,152.73,6.54750212]
[1751345550419,0.2,152.74,152.72,18.933972]
[1751345551436,4.93782349,152.73,152.72,6.54793085]
[1751345552017,5.13782349,152.74,152.72,6.54793085]
[1751345552416,4.93782349,152.73,152.72,6.54793085]
[1751345553318,0.2,152.74,152.72,6.54793085]
[1751345553519,5.13782349,152.74,152.71,6.83268277]
[1751345553914,5.13782349,152.74,152.71,23.20358185]
[1751345557031,0.2,152.74,152.72,18.64964886]
[1751345557548,5.13782349,152.74,152.72,18.64964886]
[1751345557755,5.13782349,152.74,152.73,6.54750212]
[1751345561047,0.2,152.74,152.73,6.54750212]
[1751345561239,5.13782349,152.74,152.73,6.54750212]
[1751345562445,0.2,152.74,152.73,6.54750212]
[1751345563146,5.13782349,152.74,152.73,6.54750212]
[1751345563353,0.2,152.74,152.73,25.48147412]
[1751345566753,0.2,152.74,152.73,28.64399402]
[1751345566929,0.2,152.74,152.73,25.48147412]
[1751345573647,0.2,152.74,152.73,6.54750212]
[1751345573958,0.2,152.74,152.73,6.04750212]
[1751345574248,5.14109781,152.74,152.72,6.54793085]
[1751345574757,0.2,152.74,152.72,6.54793085]
[1751345582458,5.14109781,152.74,152.72,6.54793085]
[1751345587850,3.36315468,152.74,152.72,6.54793085]
[1751345590469,0.2,152.74,152.72,6.54793085]
[1751345593469,0.2,152.74,152.72,6.64793085]
[1751345595366,3.36315468,152.74,152.72,6.64793085]
[1751345595744,0.2,152.74,152.72,6.64793085]
[1751345605085,3.36315468,152.74,152.72,6.64793085]
[1751345605379,0.2,152.74,152.72,6.64793085]
[1751345605969,3.36315468,152.74,152.72,6.64793085]
[1751345606172,3.16315468,152.73,152.72,6.64793085]
[1751345606372,0.2,152.74,152.72,6.64793085]
[1751345606680,3.16315468,152.73,152.72,6.64793085]
[1751345608268,3.36315468,152.74,152.72,6.64793085]
[1751345608991,0.2,152.74,152.72,6.64793085]
[1751345609192,3.36315468,152.74,152.72,6.64793085]
[1751345610571,0.2,152.74,152.72,6.64793085]
[1751345610985,3.36315468,152.74,152.72,6.64793085]
[1751345613779,0.2,152.74,152.72,6.64793085]
[1751345613986,3.36315468,152.74,152.72,6.64793085]
[1751345619397,0.2,152.74,152.72,6.64793085]
[1751345619566,3.36315468,152.74,152.72,6.64793085]
[1751345620499,0.2,152.74,152.72,0.1]
[1751345620705,3.16315468,152.73,152.72,0.1]
[1751345620880,3.16315468,152.73,152.72,6.64781128]
[1751345623005,0.2,152.74,152.72,0.1]
[1751345623508,3.16315468,152.73,152.72,0.1]
[1751345625192,0.2,152.74,152.72,0.1]
[1751345625393,3.16315468,152.73,152.72,0.1]
[1751345627210,0.2,152.74,152.72,6.64788573]
[1751345627418,3.16315468,152.73,152.72,6.64788573]
[1751345628000,3.16315468,152.73,152.72,0.1]
[1751345630928,0.2,152.74,152.72,0.1]
[1751345631123,3.16315468,152.73,152.72,6.64793085]
[1751345631322,0.2,152.74,152.72,6.64793085]
[1751345631691,3.16315468,152.73,152.72,6.64793085]
[1751345634505,0.2,152.74,152.72,6.64793085]
[1751345634809,3.16315468,152.73,152.72,6.64793085]
[1751345636925,3.36315468,152.74,152.72,6.64793085]
[1751345638599,0.2,152.74,152.72,6.64793085]
[1751345640623,0.2,152.74,152.73,18.933972]
[1751345641692,3.36315468,152.74,152.72,6.64793085]
[1751345642213,3.16315468,152.73,152.72,6.64793085]
[1751345642796,0.2,152.74,152.72,6.64793085]
[1751345643198,3.36315468,152.74,152.72,6.64793085]
[1751345644821,0.2,152.74,152.72,6.64793085]
[1751345645211,3.36315468,152.74,152.72,6.64793085]
[1751345646411,0.2,152.74,152.72,6.64793085]
[1751345646833,3.36315468,152.74,152.72,6.64793085]
[1751345648226,3.16315468,152.73,152.72,0.1]
[1751345648526,0.2,152.74,152.72,0.1]
[1751345648727,3.16315468,152.73,152.72,6.64793085]
[1751345649923,3.16315468,152.73,152.72,0.1]
[1751345651218,29.16315468,152.73,152.72,0.1]
[1751345651528,29.16315468,152.73,152.72,6.64793085]
[1751345654231,3.16315468,152.73,152.72,6.64793085]
[1751345659138,3.16315468,152.73,152.72,0.1]
[1751345659540,3.16315468,152.73,152.72,6.64793085]
[1751345662039,3.16315468,152.73,152.72,0.1]
[1751345662921,26.2,152.74,152.72,0.1]
[1751345663250,3.16315468,152.73,152.72,0.1]
[1751345663943,8.01142926,152.73,152.72,0.1]
[1751345665725,29.16315468,152.73,152.72,0.1]
[1751345670452,26.0,152.73,152.72,6.64793085]
[1751345670623,29.16315468,152.73,152.72,0.1]
[1751345672641,3.16315468,152.73,152.72,6.64793085]
[1751345675831,26.2,152.74,152.72,6.64793085]
[1751345676161,3.16315468,152.73,152.72,6.64793085]
[1751345678856,3.36315468,152.73,152.72,6.64793085]
[1751345683473,29.36315468,152.73,152.72,6.64793085]
[1751345683966,26.2,152.73,152.72,6.64793085]
[1751345684212,29.36315468,152.73,152.72,6.64793085]
[1751345684476,3.36315468,152.73,152.72,6.64793085]
[1751345684772,0.2,152.73,152.72,6.64793085]
[1751345685144,3.36315468,152.73,152.72,6.64793085]
[1751345686240,3.36315468,152.73,152.72,0.1]
[1751345687463,29.36315468,152.73,152.72,0.1]
[1751345687661,34.21575635,152.73,152.72,0.1]
[1751345688174,31.05260167,152.73,152.72,0.1]
[1751345688359,34.21575635,152.73,152.72,0.1]
[1751345692982,31.05260167,152.73,152.72,0.1]
[1751345693152,29.36315468,152.73,152.72,0.1]
[1751345693550,34.21751836,152.73,152.72,0.1]
[1751345694575,31.05436368,152.73,152.72,0.1]
[1751345694763,30.36315468,152.73,152.72,0.1]
[1751345695078,29.36315468,152.73,152.72,0.1]
[1751345695255,26.2,152.73,152.72,0.1]
[1751345695451,29.36315468,152.73,152.72,0.1]
[1751345696179,26.2,152.73,152.72,0.1]
[1751345696381,29.36315468,152.73,152.72,0.1]
[1751345701278,3.36315468,152.73,152.72,0.1]
[1751345701458,29.36315468,152.73,152.72,0.1]
[1751345703868,34.21818013,152.73,152.72,0.1]
[1751345704991,31.05502545,152.73,152.72,0.1]
[1751345705287,34.21818013,152.73,152.72,0.1]
[1751345707006,31.05502545,152.73,152.72,0.1]
[1751345707305,29.36315468,152.73,152.72,0.1]
[1751345708401,26.2,152.73,152.72,0.1]
[1751345708599,29.36315468,152.73,152.72,0.1]
[1751345718307,40.76638275,152.73,152.72,0.1]
[1751345719040,41.76638275,152.73,152.72,0.1]
[1751345719904,40.76638275,152.73,152.72,0.1]
[1751345721328,53.41900147,152.73,152.72,0.1]
[1751345723811,54.41900147,152.73,152.72,0.1]
[1751345725712,35.21888063,152.73,152.72,0.1]
[1751345726031,34.21888063,152.73,152.72,0.1]
[1751345726619,31.05572595,152.73,152.72,0.1]
[1751345726818,40.76638275,152.73,152.72,0.1]
[1751345727013,37.60322807,152.73,152.72,0.1]
[1751345727214,34.21888063,152.73,152.72,0.1]
[1751345728030,31.05572595,152.73,152.72,0.1]
[1751345728250,34.21888063,152.73,152.72,0.1]
[1751345728612,35.21888063,152.73,152.72,0.1]
[1751345729013,34.21888063,152.73,152.72,0.1]
[1751345733731,35.21888063,152.73,152.72,0.1]
[1751345735925,41.76638275,152.73,152.72,0.1]
[1751345736520,35.21888063,152.73,152.72,0.1]
[1751345737945,41.76638275,152.73,152.72,0.1]
[1751345741027,54.41900147,152.73,152.72,0.1]
[1751345741344,54.41900147,152.73,152.67,2.0]
[1751345741345,225.60209961,152.73,152.67,2.0]
[1751345741527,3.16315468,152.68,152.65,0.1]
[1751345741842,29.16315468,152.66,152.65,0.1]
[1751345742045,34.01888063,152.66,152.65,0.1]
[1751345742259,26.0,152.66,152.65,0.1]
[1751345742424,29.16315468,152.66,152.65,0.1]
[1751345742940,3.16315468,152.66,152.65,6.6509335]
[1751345743143,33.0,152.68,152.65,6.6509335]
[1751345743321,36.16315468,152.68,152.65,6.6509335]
[1751345743721,7.0,152.68,152.65,23.02826727]
[1751345743935,26.0,152.7,152.66,1.5968]
[1751345744142,146.4,152.73,152.66,1.5968]
[1751345744320,3.16315468,152.69,152.66,1.5968]
[1751345744522,3.16315468,152.71,152.66,4.75995468]
[1751345745148,0.2,152.73,152.7,11.38457782]
[1751345745330,0.2,152.73,152.71,21.81280354]
[1751345745848,0.2,152.73,152.71,23.59125652]
[1751345746042,0.2,152.73,152.72,4.94160766]
[1751345746435,0.2,152.73,152.71,23.59125652]
[1751345747237,0.2,152.73,152.67,25.19972418]
[1751345747238,30.94160766,152.72,152.67,25.19972418]
[1751345747436,26.0,152.72,152.67,25.19972418]
[1751345747640,4.94160766,152.69,152.67,41.5739818]
[1751345747851,4.94160766,152.69,152.67,25.19972418]
[1751345749253,4.94160766,152.7,152.67,25.19972418]
[1751345749855,4.94160766,152.69,152.67,25.19972418]
[1751345753855,4.94160766,152.68,152.67,6.55007532]
[1751345754364,4.94160766,152.68,152.66,8.19585716]
[1751345754539,4.94160766,152.67,152.66,8.19585716]
[1751345754858,4.94160766,152.67,152.66,0.1]
[1751345755058,26.0,152.67,152.63,5.42109384]
[1751345755231,4.94160766,152.64,152.63,5.42109384]
[1751345755438,26.0,152.66,152.63,11.97283931]
[1751345755651,6.04448079,152.7,152.63,11.97283931]
[1751345755882,4.94160766,152.65,152.63,11.97283931]
[1751345757452,26.0,152.67,152.63,11.97283931]
[1751345757657,4.94160766,152.65,152.63,11.97283931]
[1751345757842,6.54845277,152.71,152.63,11.97283931]
[1751345758043,26.0,152.68,152.63,11.97283931]
[1751345758571,4.94160766,152.65,152.63,11.97283931]
[1751345758942,4.94160766,152.67,152.63,16.91444697]
[1751345759135,4.94160766,152.67,152.63,11.97283931]
[1751345759661,4.94160766,152.67,152.64,0.28432314]
[1751345760581,4.94160766,152.67,152.65,6.5509335]
[1751345763349,26.0,152.7,152.65,6.5509335]
[1751345763548,0.2,152.69,152.65,22.92826727]
[1751345763767,0.2,152.69,152.66,23.87557966]
[1751345763977,0.2,152.69,152.68,0.28432314]
[1751345764194,0.2,152.69,152.68,23.87557966]
[1751345764478,0.2,152.69,152.68,30.42522597]
[1751345764666,0.2,152.69,152.68,6.83396945]
[1751345768485,0.2,152.69,152.68,11.77557711]
[1751345769357,0.2,152.69,152.68,6.83396945]
[1751345769974,0.2,152.69,152.68,30.42522597]
[1751345777084,0.2,152.69,152.68,58.06522597]
[1751345779299,0.2,152.73,152.72,46.15004886]
[1751345779494,0.2,152.73,152.72,86.23597966]
[1751345780205,0.2,152.73,152.72,81.294372]